bitfinex/quotes_BTCUSD_20250211
["timestamp","ask_amount","ask_price","bid_price","bid_amount"]
[1739293320935,0.01213331,96422.0,96421.0,0.03229829]
[1739293321040,0.16769931,96422.0,96421.0,0.03229829]
[1739293321247,0.00013331,96422.0,96421.0,0.03229829]
[1739293321570,0.00813331,96422.0,96421.0,0.03229829]
[1739293321972,0.00013331,96422.0,96421.0,0.03229829]
[1739293322167,0.001,96422.0,96421.0,0.03229829]
[1739293322370,0.001,96422.0,96414.0,0.0811]
[1739293322573,0.001,96422.0,96419.0,0.15557]
[1739293322774,0.001,96422.0,96421.0,0.155567]
[1739293322992,0.001,96422.0,96421.0,0.03232741]
[1739293323406,0.012,96422.0,96421.0,0.03232741]
[1739293323611,0.166566,96422.0,96421.0,0.03232741]
[1739293323785,0.156566,96422.0,96421.0,0.03232741]
[1739293324213,0.002,96422.0,96421.0,0.03232741]
[1739293324537,0.155561,96425.0,96421.0,0.03232741]
[1739293324744,0.5379,96428.0,96406.0,0.00022407]
[1739293324899,0.01192047,96430.0,96410.0,0.155584]
[1739293324900,0.155569,96420.0,96410.0,0.155584]
[1739293325099,0.155571,96419.0,96411.0,0.03234581]
[1739293325308,0.002,96422.0,96412.0,0.03234581]
[1739293325528,0.157566,96422.0,96421.0,0.001]
[1739293325729,0.002,96422.0,96421.0,0.03334581]
[1739293326105,0.157566,96422.0,96421.0,0.03334581]
[1739293326311,0.002,96422.0,96421.0,0.03334581]
[1739293327259,0.01197844,96440.0,96421.0,0.03334581]
[1739293327454,0.155547,96434.0,96422.0,0.03234581]
[1739293327609,0.155541,96438.0,96428.0,0.155556]
[1739293327811,0.0117451,96441.0,96429.0,0.03234581]
[1739293328013,0.0117451,96441.0,96430.0,0.03234581]
[1739293328278,0.0117451,96441.0,96433.0,0.155547]
[1739293328460,0.15,96442.0,96434.0,0.23974081]
[1739293328664,0.15,96442.0,96435.0,0.03234581]
[1739293328846,0.305534,96442.0,96436.0,0.03234581]
[1739293329046,0.155535,96441.0,96437.0,0.03234581]
[1739293329246,0.155535,96441.0,96438.0,0.03234581]
[1739293329475,0.207378,96442.0,96438.0,0.03234581]
[1739293329894,0.155537,96440.0,96438.0,0.03234581]
[1739293330106,0.5838,96466.0,96438.0,0.37148946]
[1739293330308,0.207336,96462.0,96438.0,0.42118946]
[1739293330858,0.207344,96458.0,96438.0,0.42318946]
[1739293331059,0.207348,96456.0,96438.0,0.42318946]
[1739293331262,0.0101067,96439.0,96438.0,0.42118946]
[1739293331393,0.0101067,96439.0,96438.0,0.42318946]
[1739293331574,0.0001067,96439.0,96438.0,0.42318946]
[1739293332607,0.0001067,96439.0,96438.0,0.37918945]
[1739293332786,0.0001067,96439.0,96438.0,0.37718945]
[1739293333042,0.0001067,96439.0,96438.0,0.38118945]
[1739293333297,0.0001067,96439.0,96438.0,0.33148945]
[1739293333502,0.0001067,96439.0,96438.0,0.15954]
[1739293333674,0.0011067,96439.0,96438.0,0.16454]
[1739293333889,0.0011067,96439.0,96438.0,0.26704365]
[1739293334262,0.0011067,96439.0,96438.0,0.29930842]
[1739293334466,0.0496,96497.0,96441.0,0.1988]
[1739293334673,0.00013361,96472.0,96442.0,0.13476842]
[1739293335014,0.207334,96463.0,96442.0,0.10250365]
[1739293335319,0.207316,96471.0,96444.0,0.0832]
[1739293335434,0.15,96468.0,96438.0,0.004]
[1739293335634,0.10250365,96470.0,96429.0,0.0832]
[1739293335635,0.023,96465.0,96429.0,0.0832]
[1739293335885,0.075,96457.0,96431.0,0.23825715]
[1739293336111,0.0001067,96439.0,96431.0,0.23825715]
[1739293336311,0.0001067,96439.0,96431.0,0.08270615]
[1739293336507,0.0001067,96439.0,96419.0,0.0472]
[1739293336744,0.155548,96433.0,96422.0,0.155565]
[1739293337366,0.0011067,96439.0,96418.0,0.0832]
[1739293337367,0.0001067,96439.0,96418.0,0.0832]
[1739293337921,0.0001067,96439.0,96434.0,0.0832]
[1739293338198,0.0001067,96439.0,96438.0,0.15554]
[1739293338398,0.0001067,96439.0,96438.0,0.25804365]
[1739293339565,0.0001067,96439.0,96438.0,0.26004365]
[1739293339957,0.0001067,96439.0,96438.0,0.25804365]
[1739293340180,0.0001067,96439.0,96438.0,0.26204365]
[1739293340620,0.0001067,96439.0,96438.0,0.35024365]
[1739293341658,0.0001067,96439.0,96438.0,0.009]
[1739293342201,0.1556447,96439.0,96438.0,0.009]
[1739293342397,0.0001067,96439.0,96419.0,0.0832]
[1739293342769,0.207387,96438.0,96427.0,0.155557]
[1739293342942,0.0011067,96439.0,96421.0,0.207423]
[1739293343101,0.207387,96438.0,96421.0,0.10250365]
[1739293343296,0.155543,96436.0,96425.0,0.155561]
[1739293343524,0.155544,96436.0,96425.0,0.15556]
[1739293343726,0.155541,96438.0,96421.0,0.10250365]
[1739293343931,0.155542,96437.0,96426.0,0.155558]
[1739293344654,0.155542,96437.0,96427.0,0.155557]
[1739293344854,0.0071067,96439.0,96426.0,0.155558]
[1739293345198,0.155543,96436.0,96426.0,0.155558]
[1739293345323,0.155543,96436.0,96427.0,0.155557]
[1739293345525,0.155542,96437.0,96421.0,0.10250365]
[1739293345766,0.155543,96436.0,96421.0,0.10250365]
[1739293345938,0.155543,96436.0,96426.0,0.155558]
[1739293346279,0.00718517,96439.0,96421.0,0.10250365]
[1739293346491,0.155544,96436.0,96427.0,0.155557]
[1739293346681,0.207387,96438.0,96427.0,0.155557]
[1739293346856,0.155543,96436.0,96427.0,0.155557]
[1739293347061,0.00718517,96439.0,96423.0,0.207418]
[1739293347392,0.00718517,96439.0,96419.0,0.0832]
[1739293347393,0.00718517,96439.0,96424.0,0.10250365]
[1739293347608,0.00018517,96439.0,96434.0,0.155545]
[1739293347835,0.004,96437.0,96426.0,0.001]
[1739293348029,0.004,96437.0,96436.0,0.155543]
[1739293348261,0.004,96437.0,96427.0,0.10250365]
[1739293348482,0.00018517,96439.0,96438.0,0.15554]
[1739293348625,0.00318517,96439.0,96438.0,0.15554]
[1739293349028,0.00318517,96439.0,96438.0,0.25804365]
[1739293350405,0.00318517,96439.0,96427.0,0.02047901]
[1739293350623,0.00018517,96439.0,96428.0,0.10250365]
[1739293350812,0.00018517,96439.0,96427.0,0.02047901]
[1739293351017,0.00018517,96439.0,96412.0,0.15]
[1739293351220,0.15572517,96439.0,96420.0,0.10250365]
[1739293351416,0.00018517,96439.0,96422.0,0.207421]
[1739293351622,0.00018517,96439.0,96423.0,0.10250365]
[1739293351833,0.00018517,96439.0,96424.0,0.207417]
[1739293351982,0.00018517,96439.0,96435.0,0.155544]
[1739293352182,0.00018517,96439.0,96433.0,0.155547]
[1739293352387,0.00018517,96439.0,96432.0,0.2074]
[1739293352590,0.00018517,96439.0,96437.0,0.155541]
[1739293352790,0.00018517,96439.0,96438.0,0.003]
[1739293353240,0.00018517,96439.0,96433.0,0.155547]
[1739293353449,0.00018517,96439.0,96432.0,0.155549]
[1739293354150,0.004,96437.0,96431.0,0.155551]
[1739293354578,0.15554,96438.0,96426.0,0.207412]
[1739293354779,0.00018517,96439.0,96426.0,0.30991565]
[1739293354999,0.00118517,96439.0,96426.0,0.10250365]
[1739293355203,0.00118517,96439.0,96430.0,0.155552]
[1739293355551,0.00018517,96439.0,96428.0,0.207408]
[1739293355741,0.003,96437.0,96426.0,0.10250365]
[1739293356042,0.003,96437.0,96426.0,0.30991365]
[1739293356248,0.158542,96437.0,96426.0,0.30991365]
[1739293356465,0.003,96437.0,96427.0,0.155557]
[1739293356668,0.03671092,96436.0,96415.0,0.02148043]
[1739293356796,0.155545,96436.0,96425.0,0.155561]
[1739293357002,0.003,96437.0,96428.0,0.155555]
[1739293357199,0.15572417,96439.0,96428.0,0.155555]
[1739293357382,0.155541,96438.0,96426.0,0.207412]
[1739293357587,0.159541,96438.0,96426.0,0.156558]
[1739293357788,0.004,96438.0,96426.0,0.001]
[1739293358010,0.15554,96438.0,96427.0,0.155557]
[1739293358212,0.01914992,96437.0,96427.0,0.155557]
[1739293358535,0.01914992,96437.0,96428.0,0.001]
[1739293358890,0.01914992,96437.0,96423.0,0.207418]
[1739293359088,0.01914992,96437.0,96420.0,0.10250365]
[1739293359259,0.155545,96436.0,96420.0,0.10250365]
[1739293359458,0.155545,96436.0,96425.0,0.155561]
[1739293359724,0.01914992,96436.0,96420.0,0.10250365]
[1739293359930,0.22654092,96436.0,96423.0,0.00022407]
[1739293360142,0.01914992,96436.0,96425.0,0.155561]
[1739293360322,0.01914992,96436.0,96426.0,0.001]
[1739293360720,0.01914992,96436.0,96423.0,0.00022407]
[1739293361129,0.003,96436.0,96423.0,0.00022407]
[1739293361516,0.01914992,96437.0,96426.0,0.155558]
[1739293361721,0.003,96436.0,96423.0,0.00022407]
[1739293361921,0.00694351,96435.0,96423.0,0.00022407]
[1739293362130,0.207404,96431.0,96423.0,0.00022407]
[1739293362389,0.5379,96434.0,96423.0,0.00022407]
[1739293362548,0.155562,96424.0,96423.0,0.00022407]
[1739293362760,0.207414,96426.0,96423.0,0.00022407]
[1739293362973,0.155561,96426.0,96423.0,0.00022407]
[1739293363135,0.155562,96424.0,96423.0,0.00022407]
[1739293364201,0.17471192,96424.0,96423.0,0.00022407]
[1739293364403,0.17471192,96424.0,96423.0,0.00422407]
[1739293364607,0.96511557,96424.0,96423.0,0.00422407]
[1739293364759,1.09237609,96424.0,96423.0,0.00022407]
[1739293364964,1.0241839,96424.0,96423.0,0.00022407]
[1739293365164,1.1144839,96424.0,96423.0,0.00122407]
[1739293365610,1.14511846,96424.0,96423.0,0.00122407]
[1739293365755,1.14511846,96424.0,96423.0,0.00422407]
[1739293365984,1.14511846,96424.0,96423.0,0.00122407]
[1739293366402,1.13015013,96424.0,96423.0,0.00022407]
[1739293366610,1.12415013,96424.0,96423.0,0.00022407]
[1739293366825,1.10851557,96424.0,96423.0,0.00122407]
[1739293367026,1.11451557,96424.0,96423.0,0.00122407]
[1739293367227,1.1615534,96424.0,96396.0,0.08270615]
[1739293367496,0.79040365,96423.0,96396.0,0.04713282]
[1739293367669,0.155599,96402.0,96396.0,0.04713282]
[1739293367872,0.1556,96401.0,96396.0,0.04713282]
[1739293368059,0.155594,96405.0,96388.0,0.20848455]
[1739293368254,0.15558,96413.0,96402.0,0.155597]
[1739293368475,0.15,96415.0,96387.0,0.00099155]
[1739293368656,0.15,96415.0,96395.0,0.207479]
[1739293368860,0.01914992,96422.0,96412.0,0.15558]
[1739293369061,0.01914992,96422.0,96400.0,0.0756]
[1739293369290,0.207425,96420.0,96401.0,0.10250365]
[1739293369461,0.002,96413.0,96409.0,0.155586]
[1739293369784,0.01914992,96419.0,96410.0,0.155584]
[1739293370000,0.01914992,96419.0,96415.0,0.155576]
[1739293370223,0.01914992,96419.0,96409.0,0.207448]
[1739293370425,0.01914992,96419.0,96401.0,0.10250365]
[1739293370426,0.155574,96417.0,96401.0,0.10250365]
[1739293370670,0.001,96413.0,96401.0,0.10250365]
[1739293370789,0.001,96413.0,96411.0,0.155582]
[1739293371012,0.01914992,96419.0,96409.0,0.155586]
[1739293371211,0.155577,96416.0,96403.0,0.207462]
[1739293371419,0.004,96419.0,96405.0,0.155593]
[1739293371621,0.155574,96417.0,96404.0,0.10250365]
[1739293371838,0.004,96419.0,96404.0,0.10250365]
[1739293372094,0.004,96419.0,96412.0,0.155581]
[1739293372254,0.155574,96417.0,96404.0,0.30996365]
[1739293372461,0.155572,96419.0,96411.0,0.155583]
[1739293372857,0.207425,96420.0,96411.0,0.155583]
[1739293373091,0.001,96413.0,96408.0,0.20745]
[1739293373537,0.155572,96419.0,96411.0,0.155583]
[1739293373712,0.006,96419.0,96410.0,0.00022407]
[1739293374068,0.155572,96418.0,96410.0,0.00022407]
[1739293374268,0.155583,96411.0,96410.0,0.00022407]
[1739293374717,0.209441,96413.0,96410.0,0.00022407]
[1739293374940,0.157582,96413.0,96410.0,0.00022407]
[1739293375313,0.155583,96411.0,96410.0,0.00022407]
[1739293375870,0.01912798,96412.0,96410.0,0.00022407]
[1739293376450,0.01912798,96412.0,96411.0,0.155583]
[1739293376650,0.01912798,96412.0,96411.0,0.231183]
[1739293376878,0.005,96418.0,96411.0,0.231183]
[1739293377078,0.005,96418.0,96411.0,0.0756]
[1739293377292,0.15,96430.0,96411.0,0.0756]
[1739293377293,0.207408,96429.0,96411.0,0.0756]
[1739293377483,0.155564,96424.0,96412.0,0.155582]
[1739293377687,0.155563,96424.0,96413.0,0.15558]
[1739293377988,0.207413,96426.0,96411.0,0.0756]
[1739293378204,0.004,96418.0,96414.0,0.155578]
[1739293378371,0.004,96418.0,96411.0,0.0756]
[1739293379123,0.004,96418.0,96410.0,0.15580907]
[1739293379326,0.004,96418.0,96410.0,0.00022407]
[1739293379506,0.207417,96424.0,96410.0,0.00022407]
[1739293379707,0.01912954,96425.0,96410.0,0.00022407]
[1739293379913,0.009,96424.0,96416.0,0.155574]
[1739293380284,0.17469054,96425.0,96414.0,0.155578]
[1739293380492,0.01751273,96423.0,96415.0,0.155576]
[1739293380686,0.01751273,96423.0,96412.0,0.02124088]
[1739293380950,0.01751273,96423.0,96414.0,0.207438]
[1739293381164,0.01751273,96423.0,96413.0,0.15558]
[1739293381478,0.155562,96425.0,96413.0,0.15558]
[1739293381694,0.15,96429.0,96410.0,0.00022407]
[1739293381905,0.207421,96423.0,96410.0,0.00022407]
[1739293382085,0.155572,96418.0,96410.0,0.00022407]
[1739293382242,0.207421,96423.0,96410.0,0.00022407]
[1739293382446,0.15,96431.0,96402.0,0.05253626]
[1739293382645,0.15,96431.0,96410.0,0.155583]
[1739293382851,0.012,96425.0,96403.0,0.10250365]
[1739293383052,0.15557,96420.0,96410.0,0.155584]
[1739293383268,0.009,96425.0,96403.0,0.10250365]
[1739293383442,0.002,96423.0,96418.0,0.155572]
[1739293383672,0.002,96423.0,96413.0,0.20744]
[1739293384054,0.002,96423.0,96417.0,0.155574]
[1739293384257,0.002,96423.0,96403.0,0.10250365]
[1739293384686,0.009,96423.0,96418.0,0.001]
[1739293385336,0.007,96423.0,96418.0,0.001]
[1739293385535,0.009,96423.0,96418.0,0.001]
[1739293385764,0.15557,96419.0,96418.0,0.001]
[1739293385919,0.0787,96421.0,96396.0,0.00281753]
[1739293386125,0.155572,96418.0,96399.0,0.155603]
[1739293386327,0.155605,96398.0,96396.0,0.00281753]
[1739293386534,0.155606,96397.0,96396.0,0.00281753]
[1739293386774,0.5379,96412.0,96396.0,0.00281753]
[1739293386975,0.155606,96397.0,96396.0,0.00281753]
[1739293387416,0.207456,96406.0,96384.0,0.0012524]
[1739293387547,0.10294884,96411.0,96384.0,0.0012524]
[1739293387756,0.207477,96396.0,96387.0,0.155622]
[1739293387966,0.155607,96397.0,96388.0,0.15562]
[1739293388162,0.155608,96396.0,96388.0,0.15562]
[1739293388366,0.155615,96392.0,96384.0,0.0012524]
[1739293388569,0.24564654,96410.0,96384.0,0.0012524]
[1739293388796,0.00044519,96411.0,96385.0,0.10250365]
[1739293388997,0.15044519,96411.0,96385.0,0.10250365]
[1739293389202,0.155597,96403.0,96393.0,0.155612]
[1739293389400,0.15044519,96411.0,96385.0,0.10250365]
[1739293389629,0.15,96409.0,96395.0,0.155609]
[1739293389825,0.16044519,96411.0,96395.0,0.155609]
[1739293390036,0.1556,96401.0,96395.0,0.155609]
[1739293390456,0.207464,96402.0,96387.0,0.207496]
[1739293390655,0.004,96403.0,96385.0,0.10250365]
[1739293390829,0.15,96406.0,96387.0,0.155622]
[1739293391035,0.207462,96403.0,96382.0,0.00099155]
[1739293391235,0.15,96404.0,96390.0,0.155617]
[1739293391463,0.0344583,96405.0,96382.0,0.207506]
[1739293391639,0.155609,96395.0,96381.0,0.00099155]
[1739293391841,0.155609,96395.0,96388.0,0.155619]
[1739293392246,0.155609,96395.0,96389.0,0.155618]
[1739293392632,0.155606,96398.0,96391.0,0.155615]
[1739293392827,0.155612,96394.0,96388.0,0.207493]
[1739293393081,0.0344583,96405.0,96391.0,0.155615]
[1739293393298,0.207474,96398.0,96388.0,0.207493]
[1739293393488,0.155609,96396.0,96390.0,0.155616]
[1739293393679,0.15561,96395.0,96388.0,0.363112]
[1739293393897,0.004,96403.0,96383.0,0.207505]
[1739293394130,0.09338153,96402.0,96386.0,0.155622]
[1739293394255,0.155612,96394.0,96388.0,0.15562]
[1739293394453,0.20747,96400.0,96385.0,0.207501]
[1739293394659,0.001,96394.0,96388.0,0.001]
[1739293394855,0.001,96394.0,96390.0,0.155617]
[1739293395199,0.001,96394.0,96388.0,0.156619]
[1739293395376,0.155614,96392.0,96388.0,0.001]
[1739293395581,0.155613,96393.0,96389.0,0.03237819]
[1739293395773,0.156611,96394.0,96389.0,0.03237819]
[1739293395981,0.155617,96390.0,96389.0,0.03237819]
[1739293396184,0.155619,96389.0,96385.0,0.03237819]
[1739293396442,0.01914628,96397.0,96386.0,0.03237538]
[1739293396645,0.207481,96395.0,96386.0,0.03237538]
[1739293397003,0.155617,96391.0,96387.0,0.03237538]
[1739293397127,0.001,96390.0,96389.0,0.001]
[1739293397322,0.001,96390.0,96389.0,0.03337538]
[1739293397323,0.1551894,96390.0,96389.0,0.03337538]
[1739293397648,0.1551894,96390.0,96389.0,0.03237538]
[1739293398869,0.94559305,96390.0,96389.0,0.03237538]
[1739293399080,0.305622,96387.0,96386.0,0.001]
[1739293399283,0.40812565,96387.0,96386.0,0.001]
[1739293399459,0.40812565,96387.0,96384.0,0.00147647]
[1739293399460,0.305625,96385.0,96384.0,0.00147647]
[1739293399661,0.40812865,96385.0,96384.0,0.00147647]
[1739293399846,0.94602865,96385.0,96384.0,0.00147647]
[1739293400051,1.02112865,96385.0,96384.0,0.00147647]
[1739293400248,1.06672865,96385.0,96384.0,0.00147647]
[1739293400663,1.08585024,96385.0,96384.0,0.00147647]
[1739293400868,1.01075024,96385.0,96384.0,0.00147647]
[1739293401066,1.02275024,96385.0,96384.0,0.00147647]
[1739293401752,0.92024659,96385.0,96384.0,0.00147647]
[1739293401955,0.87464659,96385.0,96384.0,0.00147647]
[1739293402177,0.86264659,96385.0,96384.0,0.00147647]
[1739293402380,0.15,96383.0,96377.0,0.155637]
[1739293402591,0.15,96383.0,96378.0,0.00099183]
[1739293402805,0.72664759,96385.0,96379.0,0.155635]
[1739293402979,0.155627,96384.0,96378.0,0.00099183]
[1739293403188,0.155634,96380.0,96378.0,0.00099183]
[1739293403611,0.155634,96380.0,96362.0,0.4151]
[1739293403923,0.155637,96379.0,96371.0,0.155647]
[1739293404227,0.155637,96379.0,96372.0,0.155646]
[1739293404428,0.00044492,96379.0,96364.0,0.207546]
[1739293404644,0.00044492,96379.0,96370.0,0.00099183]
[1739293404849,0.00044492,96379.0,96378.0,0.155637]
[1739293405391,0.00044492,96379.0,96370.0,0.00099183]
[1739293405596,0.00044492,96379.0,96378.0,0.155637]
[1739293405985,0.207487,96392.0,96377.0,0.00099183]
[1739293406221,0.008,96379.0,96377.0,0.00112514]
[1739293406426,0.01,96379.0,96377.0,0.00112514]
[1739293406628,0.01,96379.0,96377.0,0.00013331]
[1739293406746,0.155631,96382.0,96377.0,0.00013331]
[1739293406946,0.155631,96382.0,96378.0,0.001]
[1739293407303,0.207475,96397.0,96378.0,0.001]
[1739293407501,0.155626,96385.0,96377.0,0.00099183]
[1739293407717,0.0456,96411.0,96377.0,0.00099183]
[1739293407853,0.155623,96387.0,96379.0,0.155634]
[1739293408574,0.155623,96387.0,96379.0,0.155635]
[1739293409215,0.155621,96388.0,96380.0,0.155633]
[1739293409415,0.006,96387.0,96380.0,0.155633]
[1739293409931,0.00013344,96388.0,96380.0,0.155633]
[1739293410136,0.00013344,96388.0,96376.0,0.00099183]
[1739293410368,0.155624,96386.0,96379.0,0.155635]
[1739293410696,0.155624,96386.0,96380.0,0.155633]
[1739293410916,0.15563,96383.0,96376.0,0.15564]
[1739293411129,0.155628,96384.0,96376.0,0.15564]
[1739293411369,0.155628,96384.0,96376.0,0.155638]
[1739293411533,0.007,96387.0,96371.0,0.00099183]
[1739293411742,0.155632,96381.0,96374.0,0.155643]
[1739293412001,0.155632,96381.0,96377.0,0.00022386]
[1739293412458,0.155632,96381.0,96375.0,0.155641]
[1739293412668,0.006,96387.0,96376.0,0.209518]
[1739293412876,0.006,96387.0,96386.0,0.231424]
[1739293413068,0.006,96387.0,96386.0,0.33392765]
[1739293413273,0.00013344,96388.0,96387.0,0.155622]
[1739293413471,0.00013344,96388.0,96387.0,0.40916289]
[1739293413821,0.00013344,96388.0,96387.0,0.47882565]
[1739293415159,0.00013344,96388.0,96387.0,0.32094297]
[1739293415374,0.00013344,96388.0,96387.0,0.34394297]
[1739293415840,0.00113344,96388.0,96387.0,0.383221]
[1739293416265,0.00113344,96388.0,96387.0,0.34594297]
[1739293416403,0.00013344,96388.0,96387.0,0.34394297]
[1739293416602,0.00113344,96388.0,96387.0,0.35094297]
[1739293416879,0.00213344,96388.0,96387.0,0.35294297]
[1739293417091,0.00113344,96388.0,96387.0,0.32794297]
[1739293417374,0.00113344,96388.0,96387.0,0.28024297]
[1739293417705,0.00113344,96388.0,96387.0,0.10950365]
[1739293417882,0.00113344,96388.0,96387.0,0.007]
[1739293418926,0.00213344,96388.0,96387.0,0.009]
[1739293419125,0.15675444,96388.0,96387.0,0.007]
[1739293419535,0.15675444,96388.0,96387.0,0.009]
[1739293419536,0.15775444,96388.0,96387.0,0.009]
[1739293420170,0.15675444,96388.0,96387.0,0.002]
[1739293420374,0.15675444,96388.0,96387.0,0.01]
[1739293420574,0.21726124,96388.0,96387.0,0.01]
[1739293420792,0.85666489,96388.0,96387.0,0.008]
[1739293421002,0.155645,96373.0,96370.0,0.00099179]
[1739293421413,0.64153709,96388.0,96363.0,0.08270615]
[1739293421657,0.64040365,96387.0,96362.0,0.00099179]
[1739293421861,0.155646,96373.0,96362.0,0.00099179]
[1739293422065,0.155647,96372.0,96362.0,0.00099179]
[1739293422265,0.64040365,96387.0,96362.0,0.00099179]
[1739293422727,0.155647,96372.0,96361.0,0.01949179]
[1739293422914,0.207524,96375.0,96361.0,0.01949179]
[1739293423232,0.64040365,96387.0,96362.0,0.10250365]
[1739293423233,0.5379,96387.0,96362.0,0.10250365]
[1739293423440,0.155626,96385.0,96363.0,0.18798821]
[1739293423652,0.15563,96383.0,96364.0,0.13483086]
[1739293423875,0.15563,96383.0,96365.0,0.03232721]
[1739293424213,0.155628,96384.0,96366.0,0.10250365]
[1739293424409,0.155627,96384.0,96366.0,0.10349544]
[1739293424642,0.155627,96384.0,96367.0,0.0323275]
[1739293424788,0.5529,96387.0,96368.0,0.10250365]
[1739293424789,0.5379,96387.0,96368.0,0.10250365]
[1739293424990,0.155629,96384.0,96368.0,0.10250365]
[1739293425194,0.006,96383.0,96368.0,0.10250365]
[1739293425587,0.15563,96382.0,96368.0,0.10250365]
[1739293425788,0.001,96372.0,96365.0,0.001]
[1739293425991,0.001,96372.0,96366.0,0.03232923]
[1739293426200,0.001,96372.0,96365.0,0.001]
[1739293426378,0.001,96372.0,96362.0,0.00099179]
[1739293426603,0.155648,96372.0,96362.0,0.00099179]
[1739293426811,0.5399,96382.0,96366.0,0.001]
[1739293427013,0.155647,96372.0,96366.0,0.001]
[1739293427216,0.5399,96382.0,96362.0,0.00099179]
[1739293427419,0.207511,96380.0,96356.0,0.00099179]
[1739293427674,0.207509,96381.0,96365.0,0.001]
[1739293427906,0.58275138,96382.0,96365.0,0.001]
[1739293428100,0.415018,96381.0,96356.0,0.00099179]
[1739293428297,0.15565,96370.0,96356.0,0.00099179]
[1739293428630,0.58675138,96382.0,96362.0,0.001]
[1739293428807,0.15565,96370.0,96362.0,0.002]
[1739293428953,0.155648,96372.0,96362.0,0.002]
[1739293429161,0.155648,96372.0,96362.0,0.001]
[1739293429369,0.5439,96382.0,96362.0,0.001]
[1739293429370,0.5439,96382.0,96363.0,0.10250365]
[1739293429604,0.155636,96379.0,96363.0,0.10250365]
[1739293429811,0.5379,96382.0,96363.0,0.10250365]
[1739293430045,0.5439,96382.0,96365.0,0.001]
[1739293430358,0.155645,96373.0,96366.0,0.10250365]
[1739293430571,0.155645,96373.0,96362.0,0.00099179]
[1739293430572,0.15565,96371.0,96364.0,0.00099179]
[1739293430723,0.004,96379.0,96364.0,0.00099179]
[1739293430947,0.207516,96378.0,96364.0,0.00099179]
[1739293431132,0.56450366,96377.0,96364.0,0.00099179]
[1739293431355,0.155658,96365.0,96364.0,0.00099179]
[1739293431511,0.155659,96364.0,96363.0,0.001]
[1739293431713,0.155658,96365.0,96362.0,0.00099179]
[1739293431956,0.155661,96363.0,96362.0,0.00099179]
[1739293432389,0.155669,96358.0,96347.0,0.30914909]
[1739293432591,0.155661,96363.0,96362.0,0.00099175]
[1739293433710,0.155661,96363.0,96347.0,0.30914909]
[1739293433711,0.155685,96348.0,96347.0,0.30914909]
[1739293433998,0.207552,96361.0,96347.0,0.30914909]
[1739293434250,0.10250365,96362.0,96347.0,0.30914909]
[1739293434499,0.155685,96348.0,96347.0,0.30914909]
[1739293434741,0.155684,96349.0,96347.0,0.30914909]
[1739293434920,0.001,96348.0,96347.0,0.31114909]
[1739293435061,0.156685,96348.0,96347.0,0.31114909]
[1739293435866,0.156685,96348.0,96347.0,0.31314909]
[1739293436073,0.155685,96348.0,96347.0,0.31114909]
[1739293436273,0.155685,96348.0,96347.0,0.30914909]
[1739293436472,0.155685,96348.0,96347.0,0.31114909]
[1739293436876,0.17091532,96348.0,96347.0,0.30914909]
[1739293437082,0.155685,96348.0,96347.0,0.31114909]
[1739293437312,0.156685,96348.0,96347.0,0.31314909]
[1739293437700,0.156685,96348.0,96347.0,0.31114909]
[1739293437962,0.155685,96348.0,96347.0,0.26714908]
[1739293438171,0.157685,96348.0,96347.0,0.26714908]
[1739293438327,0.157685,96348.0,96347.0,0.26537294]
[1739293438507,0.002,96348.0,96347.0,0.26537294]
[1739293438707,0.002,96348.0,96347.0,0.26637294]
[1739293438909,0.002,96348.0,96347.0,0.26537294]
[1739293439152,0.157685,96348.0,96347.0,0.26537294]
[1739293439308,0.002,96348.0,96347.0,0.26537294]
[1739293439508,0.155684,96349.0,96347.0,0.26537294]
[1739293439711,0.12252396,96348.0,96347.0,0.26537294]
[1739293439945,0.12252396,96348.0,96347.0,0.26637294]
[1739293440492,0.155683,96350.0,96347.0,0.26637294]
[1739293440808,0.155682,96351.0,96347.0,0.26637294]
[1739293441018,0.156684,96349.0,96347.0,0.26637294]
[1739293441224,0.155685,96348.0,96347.0,0.26637294]
[1739293441408,0.001,96349.0,96347.0,0.26637294]
[1739293441606,0.156684,96349.0,96347.0,0.26637294]
[1739293441739,0.001,96349.0,96347.0,0.26537294]
[1739293442148,0.001,96349.0,96348.0,0.155685]
[1739293442365,0.001,96349.0,96348.0,0.00099175]
[1739293442616,0.5379,96356.0,96353.0,0.155677]
[1739293442791,0.5379,96356.0,96355.0,0.155674]
[1739293443770,0.155648,96371.0,96354.0,0.00099175]
[1739293444046,0.155648,96371.0,96361.0,0.155663]
[1739293445505,0.00212915,96363.0,96361.0,0.155663]
[1739293445678,0.00212915,96363.0,96361.0,0.15665475]
[1739293446109,0.00812915,96363.0,96361.0,0.15665475]
[1739293446544,0.00212915,96363.0,96361.0,0.00099175]
[1739293446778,0.00012915,96363.0,96360.0,0.155665]
[1739293446952,0.00112915,96363.0,96361.0,0.002]
[1739293447483,0.00112915,96363.0,96356.0,0.00099175]
[1739293447804,0.00112915,96363.0,96355.0,0.207563]
[1739293447805,0.00112915,96363.0,96362.0,0.155663]
[1739293448661,0.00012915,96363.0,96362.0,0.155663]
[1739293449031,0.00112915,96363.0,96362.0,0.155663]
[1739293449411,0.00012915,96363.0,96362.0,0.157663]
[1739293449809,0.00112915,96363.0,96362.0,0.158663]
[1739293450872,0.00112915,96363.0,96362.0,0.26116665]
[1739293452689,0.00123575,96363.0,96362.0,0.26116665]
[1739293452888,0.00123575,96363.0,96362.0,0.29351583]
[1739293456400,0.00123575,96363.0,96362.0,0.31651583]
[1739293458289,0.00102457,96363.0,96362.0,0.31651583]
[1739293460072,0.15668557,96363.0,96362.0,0.03534918]
[1739293460271,0.00102457,96363.0,96362.0,0.03534918]
[1739293460475,0.15668557,96363.0,96362.0,0.03534918]
[1739293460911,0.15668557,96363.0,96362.0,0.003]
[1739293461051,0.15668557,96363.0,96362.0,0.001]
[1739293461470,0.69458557,96363.0,96362.0,0.003]
[1739293461675,0.77048557,96363.0,96362.0,0.001]
[1739293462150,0.12249644,96351.0,96348.0,0.00099175]
[1739293462362,0.155685,96348.0,96347.0,0.22137293]